Cogmind - Beta 14 @@@ ROGUE MODE // 2024.10.11 @ 21:57:06 Player: Kazimir57 Result: Destroyed by D-53 Grenadier with Mini Grenade Launcher Performance ------------- Evolutions (0) 0 Regions Visited (2) 400 Robots Destroyed (10) 50 Value Destroyed (160) 160 Prototype IDs (0) 0 Alien Tech Used (0) 0 Bonus (0) 0 TOTAL SCORE: 610 Bonus ------- None Cogmind --------- Core Integrity 0/250 Matter 293/300 Energy 100/100 System Corruption 2% Temperature Cool (0) Movement Core (150) Ox2 Location -10/Mines Parts ------- > --- POWER (1) -------- (None) > --- PROPULSION (2) --- (None) > --- UTILITY (2) ------ Small Storage Unit Signal Interpreter > --- WEAPON (2) ------- Assault Rifle Light Assault Rifle > --- INVENTORY (8) ---- Light Ion Engine Aluminum Leg Sensor Array Medium Laser Assault Rifle Grenade Launcher Proton Bomb Trap Peak State ------------ > --- POWER ------------ Light Ion Engine > --- PROPULSION ------- Aluminum Leg Aluminum Leg > --- UTILITY ---------- Huge Storage Unit ECM Suite > --- WEAPON ----------- Medium Laser Light Assault Rifle > --- INVENTORY -------- Wheel Wheel Medium Laser Assault Rifle Grenade Launcher [Rating: 7] Favorites ----------- Power Light Ion Engine Engine Light Ion Engine Propulsion Aluminum Leg Treads Light Treads Leg Aluminum Leg Wheel Wheel Utility Signal Interpreter Device Sensor Array Storage Small Storage Unit Processor Signal Interpreter Weapon Medium Laser Energy Gun Medium Laser Ballistic Gun Light Assault Rifle Build | -11 -10 -10 ------- Run | Yrd Mat Min Slots Evolved . | . . . Power . | . . . Propulsion . | . . . Utility . | . . . Weapon . | . . . Parts Attached 25 | 9 12 4 Power 1 | 1 . . Engine 1 | 1 . . Core . | . . . Reactor . | . . . Propulsion 10 | 6 3 1 Treads 1 | . . 1 Leg 5 | 2 3 . Wheel 4 | 4 . . Hover . | . . . Flight . | . . . Utility 7 | . 6 1 Device 3 | . 3 . Storage 3 | . 2 1 Processor 1 | . 1 . Hackware . | . . . Protection . | . . . Artifact . | . . . Weapon 7 | 2 3 2 Energy Gun 3 | 1 2 . Energy Cannon . | . . . Ballistic Gun 4 | 1 1 2 Ballistic Cannon . | . . . Launcher . | . . . Special Weapon . | . . . Impact Weapon . | . . . Slashing Weapon . | . . . Piercing Weapon . | . . . Special Melee Weapon . | . . . Unidentified Prototypes . | . . . Parts Lost 3 | . . 3 Power 1 | . . 1 Propulsion 2 | . . 2 Utility . | . . . Weapon . | . . . Highest Loss Streak 2 | . . 2 To Critical Strikes . | . . . Average Slot Usage (%) 87 | . 86 88 Engine 13 | . 14 13 Treads 2 | . . 4 Leg 20 | . 28 13 Device 11 | . 10 11 Storage 1 | . . 2 Processor 9 | . 4 14 Energy Gun 11 | . 14 9 Ballistic Gun 16 | . 14 18 Peak Build Rating 7 | 5 7 7 Average Rating 5 | 4 6 6 On Entrance 4 | . 5 7 Naked Turns . | . . . Heaviest Build 88 | 7 88 11 Greatest Support 20 | 20 20 20 Greatest Overweight (x) 4 | . 4 2 Average Overweight (x) . | . . . Largest Inventory Capacity 25 | 5 25 8 Average Capacity 5 | 5 5 5 Most Carried 7 | 3 5 7 Average Carried 4 | 2 4 4 Final Capacity 8 | 5 5 8 Final Carried 7 | 3 3 7 Class Distribution -------------------- 68% | Mutant 31% | Scavenger-Mutant Dominant Class ---------------- Mutant | -10/Materials Scavenger-Mutant | -10/Mines Resources | -11 -10 -10 ----------- Run | Yrd Mat Min Matter Collected 531 | 308 122 101 Remotely . | . . . Salvage Created 217 | 41 122 54 Parts 14 | . 12 2 Haulers Intercepted . | . . . Recyclers Shooed . | . . . Parts Field Recycled . | . . . Retrieved Matter . | . . . Parts Self-Destructed . | . . . Prevented . | . . . Kills | -11 -10 -10 ------- Run | Yrd Mat Min Combat Hostiles Destroyed 9 | 1 4 4 Guns 9 | 1 4 4 Classes Destroyed 4 | 1 2 1 Watcher 2 | . 2 . Swarmer 6 | . 3 3 Grunt 2 | 1 1 . Assembled 1 | . . 1 Best Kill Streak 3 | 1 3 2 Combat Bots Only 3 | 1 3 2 Max Kills in Single Turn 1 | 1 1 1 Gunslinging . | . . . Exploded . | . . . Melee . | . . . Uniques/NPCs Destroyed . | . . . Combat | -11 -10 -10 -------- Run | Yrd Mat Min Hostile Shots Fired 79 | 9 22 48 Missed 18 | 1 8 9 Damage Taken 824 | 86 122 616 Core 259 | 12 17 230 Absorbed by Shields . | . . . Core Remaining (%) 95 | 95 . . Volleys Fired 48 | 6 16 26 Largest 2 | 2 2 2 Hottest 70 | 70 70 70 Shots Fired 96 | 12 32 52 Gun 96 | 12 32 52 Cannon . | . . . Launcher . | . . . Special . | . . . Kinetic 58 | 6 16 36 Thermal 38 | 6 16 16 Explosive . | . . . Electromagnetic . | . . . Robot Hit Streak 10 | 10 5 3 Robot Miss Streak 7 | 1 3 7 Penetration Max . | . . . Secondary Targets 1 | . 1 . Max Gunslinging Chain 1 | . 1 . Shots Hit Robots 46 | 11 17 18 Core Hits 18 | 2 8 8 Critical Kills . | . . . Critical Parts Destroyed . | . . . Critical Strikes 2 | . 2 . Burn 2 | . 2 . Melee Attacks . | . . . Impact . | . . . Slashing . | . . . Piercing . | . . . Sneak Attacks . | . . . Combat Hostiles . | . . . Follow-up Attacks . | . . . Damage Inflicted 505 | 137 194 174 Guns 503 | 137 194 172 Cannons . | . . . Explosions . | . . . Melee . | . . . Ramming 2 | . . 2 Kinetic 340 | 74 120 146 Thermal 163 | 63 74 26 Explosive . | . . . Electromagnetic . | . . . Impact . | . . . Slashing . | . . . Piercing . | . . . Highest Corruption 2 | . 2 2 Average Corruption 2 | . 2 2 Corruption Purged . | . . . Corruption Blocked . | . . . Effects 6 | . 2 4 Message Errors 2 | . . 2 Heat Flow Errors 1 | . . 1 Energy Discharges 1 | . 1 . Data Loss (minor) 2 | . 1 1 Overload Shots . | . . . Overflow Damage . | . . . Projectiles . | . . . Explosions . | . . . Melee . | . . . Knockbacks . | . . . Impact . | . . . Kinetic . | . . . Secondary . | . . . Self-Inflicted Damage . | . . . Shots . | . . . Rammed . | . . . Targets Rammed 1 | . . 1 Kicked 1 | . . 1 Crushed . | . . . Highest Temperature 194 | 87 116 194 Average Temperature 52 | 49 43 61 Received Heat Transfer 78 | 48 24 6 Siege Activations . | . . . Robots Corrupted . | . . . Combat Hostiles . | . . . Parts Fried . | . . . Impact Corruptions . | . . . Robots Melted . | . . . Combat Hostiles . | . . . Parts Melted 2 | . 1 1 Heat Transferred 629 | 185 370 74 Parts Sabotaged . | . . . Parts Stolen . | . . . Parts Stripped . | . . . Power Chain Reactions . | . . . Alert | -11 -10 -10 ------- Run | Yrd Mat Min Peak Influence 150 | 20 150 107 Initial 13 | . 13 2 Average 63 | 11 76 72 Maximum Alert Level . | . . . Low Security (%) 100 | 100 100 100 Level 1 . | . . . Level 2 . | . . . Level 3 . | . . . Level 4 . | . . . Level 5 . | . . . High Security . | . . . Max Security . | . . . Squads Dispatched 1 | . 1 . Investigation . | . . . Extermination . | . . . Reinforcement 1 | . 1 . Assault . | . . . Garrison . | . . . Intercept . | . . . Searches Triggered . | . . . Construction Impeded . | . . . Haulers Reinforced . | . . . Active Scanning Responses . | . . . Cargo Convoy Interrupts . | . . . Stealth | -11 -10 -10 --------- Run | Yrd Mat Min Distress Signals 1 | . . 1 Communications Jammed . | . . . Distress Signals . | . . . Times Spotted 25 | 1 13 11 Peak Tracking Total 4 | 1 4 3 Tactical Retreats 4 | . 2 2 Traps | -11 -10 -10 ------- Run | Yrd Mat Min Traps Triggered 1 | . 1 . Indirectly . | . . . Trap Hack Attempts . | . . . Triggered . | . . . Disarmed . | . . . Reprogrammed . | . . . Reused . | . . . Traps Extracted . | . . . Installed . | . . . Triggered . | . . . Most Traps Carried 1 | . . 1 Machines | -11 -10 -10 ---------- Run | Yrd Mat Min Machines Disabled . | . . . Max in Single Turn . | . . . Machines Repaired . | . . . Machines Dismantled . | . . . Machines Sabotaged . | . . . Overloaded Fab Kills . | . . . Hacking | -11 -10 -10 --------- Run | Yrd Mat Min Machines Accessed 1 | . 1 . Terminals 1 | . 1 . Fabricators . | . . . Repair Stations . | . . . Recycling Units . | . . . Scanalyzers . | . . . Garrison Access . | . . . Total Hacks 2 | . 2 . Successful 1 | . 1 . Failed 1 | . 1 . Catastrophic . | . . . Database Lockouts . | . . . Manual . | . . . Terminals 2 | . 2 . Fabricators . | . . . Repair Stations . | . . . Recycling Units . | . . . Scanalyzers . | . . . Garrison Access . | . . . Terminal Hacks 1 | . 1 . Record 1 | . 1 . Fabricator Hacks . | . . . Repair Station Hacks . | . . . Recycling Unit Hacks . | . . . Scanalyzer . | . . . Garrison Access Hacks . | . . . Unauthorized Hacks . | . . . Terminals . | . . . Fabricators . | . . . Repair Stations . | . . . Recycling Units . | . . . Scanalyzers . | . . . Garrison Access . | . . . Data Cores Recovered . | . . . Used . | . . . Hacking Detections 1 | . 1 . Full Trace Events . | . . . Feedback Events . | . . . Feedback Blocked . | . . . Robot Schematics Acquired . | . . . Robots Built . | . . . Authchips . | . . . Time . | . . . Total Robot Build Rating . | . . . Part Schematics Acquired . | . . . Parts Built . | . . . Authchips . | . . . Time . | . . . Total Part Build Rating . | . . . Parts Repaired . | . . . Time . | . . . Parts Recycled . | . . . Recycled Matter . | . . . Retrieved Matter . | . . . Retrieved Components . | . . . Parts Scanalyzed . | . . . Part Schematics Acquired . | . . . Parts Damaged . | . . . Bothacking | -11 -10 -10 ------------ Run | Yrd Mat Min Used RIF Installer . | . . . Robots Hacked . | . . . Non-combat . | . . . Combat . | . . . Robot Hacks Applied . | . . . Relay Couplers Released . | . . . Fabnet Peak Effective % . | . . . Robots Rewired . | . . . Allies Hacked . | . . . Hacks Repelled . | . . . Allies | -11 -10 -10 -------- Run | Yrd Mat Min Total Allies . | . . . Largest Group . | . . . Highest-Rated Group . | . . . Highest-Rated Ally . | . . . Total Orders . | . . . Ally Attacks . | . . . Total Damage . | . . . Kills . | . . . Allies Corrupted . | . . . Allies Melted . | . . . Intel | -11 -10 -10 ------- Run | Yrd Mat Min Robot Analysis Total . | . . . Derelict Logs Recovered . | . . . Drone Launches . | . . . Drone Recoveries . | . . . Exploration | -11 -10 -10 ------------- Run | Yrd Mat Min Turns Passed 1117 | 190 442 485 Spaces Moved 725 | 120 298 307 Core 17 | 16 . 1 Treads 74 | . . 74 Legs 532 | 2 298 232 Wheels 102 | 102 . . Hover . | . . . Flight . | . . . Fastest Speed 50 | 50 120 120 Average Speed 117 | 76 121 129 Slowest Speed 400 | 120 400 160 Overloaded Moves . | . . . Propulsion Burnouts . | . . . Robots Hopped . | . . . Cave-ins Triggered . | . . . Exploration Rate (%) 39 | 10 46 62 Regions Visited 2 Branch Regions 1 Pre-discovered Areas 1 | . . 1 Known Exits Taken 1 | . 1 . Unknown Exits Taken 1 | 1 . . Scrap Searched 1 | . . 1 Spaces Dug . | . . . Terrain Destroyed . | . . . Melee . | . . . Projectile . | . . . AOE . | . . . Terrain Rammed . | . . . Walls Destroyed . | . . . Machines Disabled . | . . . Actions | -11 -10 -10 --------- Run | Yrd Mat Min Total 894 | 201 346 347 Wait 73 | 64 9 . Move 723 | 119 297 307 Hop . | . . . Pick Up 9 | 3 2 4 Fast Attach 14 | 5 6 3 Attach . | . . . Detach 3 | . 1 2 Swap 11 | 4 6 1 Drop 12 | . 9 3 Fire 48 | 6 16 26 Melee . | . . . Ram . | . . . Kick 1 | . . 1 Crush . | . . . Escape Stasis . | . . . Rewire . | . . . Trap . | . . . Miscellaneous . | . . . Route ------- -11/Scrapyard -10/Materials -10/Mines History --------- Turn | Location | Event 2 | -11/Scrapyard | Met Revision 17 57 | -11/Scrapyard | Discovered new exit (range 8) 191 | -11/Scrapyard | Entered Materials 303 | -10/Materials | Build established: Mutant 385 | -10/Materials | Discovered new exit (range 12) 607 | -10/Materials | Identified exit to Mines 633 | -10/Materials | Entered Mines 804 | -10/Mines | Learned location of Storage (-7) 904 | -10/Mines | Build established: Scavenger-Mutant 917 | -10/Mines | Assembled infested the area 969 | -10/Mines | Found a hidden stash of uninstalled traps 1115 | -10/Mines | Core integrity fell below 50% 1117 | -10/Mines | Core integrity fell below 20% 1118 | -10/Mines | Destroyed by D-53 Grenadier with Mini Grenade Launcher Last Messages --------------- 01067_ Acquired 2 matter. 01068_ Acquired 3 matter. 01077_ U-05 Engineer builds a Wall. 01078_ U-05 Engineer lays Concrete. 01079_ U-05 Engineer builds a Wall. 01081_ K-01 Serf collects debris. 01081_ U-05 Engineer lays Concrete. 01084_ U-05 Engineer builds a Wall. 01088_ U-05 Engineer lays Concrete. 01091_ U-05 Engineer builds a Wall. 01093_ The unstable cave ceiling collapses. 01094_ U-05 Engineer lays Concrete. 01097_ U-05 Engineer builds a Wall. 01101_ U-05 Engineer lays Concrete. 01104_ U-05 Engineer builds a Wall. 01108_ Lgt. Ion Engine destroyed. 01108_ T-07 Excavator destroyed. 01116_ Lgt. Treads destroyed. 01117_ The unstable cave ceiling collapses. [Achievement: First Step to Greatness] Map ----- +----------------------------------------------------+ | ??????????????????????????# #??????## #??????# | | ??????????????????????????# ###????# ##?????### | | ???????????????????????#### ##???# ##??????? | | ????????????????????#### #???# ##?????? | | ????????????????##### ##?## ##????? | | ????????????????# ### ## ##???? | | ???????????????## #### ##??? | | ????????????#### #??## ##?? | | ???????????## #### ##???## ##? | | ???????????# ##??####?????# ## | | ############ ## #????????????# # | | ### ##????????????" # | | ##?# ##?????????????" # | | ############### ###### #??????????????#X ## | | ??????????????## ##?## ###### #??????# ##? | | ???????????????####??# #??????# #?? | | ?????????????????????# d### #### #?????# ##?? | | ?????????????????????# ###d#???????????# ##??? | | ????????????????????## ## #???????????# #???? | | ?????????????????#### ##?????????? ????? | | ?????????????????# ##???????? ????? | | ?????????????????# ##?????? ## ????? | | ???????####?????## #?????# ?## ????? | | ??????## ##?????### #?????# ???##????? | | #?????# #?##?##?## ##?????# ?????????? | | #?????# ## ## #?# @ ##??????#??????????? | | ?#?????# # ### #?????????????????? | | #####?## ###### ##?????????????????? | | # ### % # #?????????????????? | | #### #?????????????????? | | # #### ## #??? #?????????????????? | | # ## # ## #????#?????????????????? | | #% " # # ##$ #??????????????????????? | | # = ## # # ## #??????????????????????? | | = % # ## ## #### ## #??????????????????????? | | [ ### ## ??????????????????????? | | ###?##?# #### #####??????????????????????? | | # #??????? #?? ???????????????????????????? | | ### #?????? #??# ???????????????????????????? | | ##?# #?????? ??# ???????????????????????????? | | ##??# #?????? ??#???????????????????????????? | | #??? #?????? ? ??????????????????????????????? | | ???? #????? ????????????????????????????????? | | ???? ###?????#?##????????????????????????????????? | | ???? ????????????????????????????????????????????? | | ???? ????????????????????????????????????????????? | | ?????????????????????????????????????????????????? | | ?????????????????????????????????????????????????? | | ?????????????????????????????????????????????????? | | ?????????????????????????????????????????????????? | +----------------------------------------------------+ Best States ------------- Heat Dissipation 25 Energy Generation 10 Energy Capacity 125 Matter Stores 300 Matter Capacity 300 Sight Range 16 Robot Scan Range 14 Terrain Scan Density 10 ECM Strength 2 Evasion (%) 55 Recoil Reduction 1 Item Schematics ----------------- None Robot Schematics ------------------ None Fabricated ------------ Nothing Alien Tech Used ----------------- None Achievements -------------- Crack Shot First Step to Greatness Storm Trooper Uninvited Guest Challenges ------------ None Game ------ Seed DroneMicrodissipatorSlayer Manual? 0 Play Time 00:50:57 Cumulative 0.8 hours Start 2024.10.10 @ 20:07:07 End 2024.10.11 @ 21:57:06 Sessions 3 Manual Loads 0 Difficulty Rogue Special Mode None Game No. 1 Rogue 1 Adventurer 0 Explorer 0 Win Type - Total 0 Types 0/0/0/0/0/0/0/0/0 Lore% 0 Gallery% 1 Achievement% 1 Wizard Run 0 Options --------- Layout 1 ASCII 0 Keyboard 0 Movement Mouse Keybinds 0 Fullscreen 1 Font 24/Smallcaps Map View 50x35 Zoom Use 0% Tactical HUD 1 Map Filters NONE Filters NONE Steam 1 RUN: 484d365a-6d0f-482e-bd7a-ff38dd1f1f27